[Event "CAMPEONATO NACIONAL ABSOLUTO DE CHILE 2019"]
[Site "Torre ENTEL, Chile"]
[Date "2019.02.23"]
[Round "5.6"]
[White "Cuevas Araya, Walter"]
[Black "Abarca Gonzalez, Nicolas"]
[Result "1-0"]
[TimeControl "90 minutos mas 30 segundos incremento por movida"]
[WhiteTitle "FM"]
[WhiteFideId "3405028"]
[BlackFideId "3409422"]
[WhiteElo "2187"]
[BlackElo "2418"]

1. e4 {[%clk 01:30:56]} {[%emt 00:00:04]} c6 {[%clk 01:27:24]} {[%emt
00:03:37]} 2. d4 {[%clk 01:30:49]} {[%emt 00:00:36]} d5 {[%clk 01:27:52]}
{[%emt 00:00:02]} 3. f3 {[%clk 01:30:35]} {[%emt 00:00:44]} dxe4 {[%clk
01:22:27]} {[%emt 00:05:56]} 4. fxe4 {[%clk 01:30:48]} {[%emt 00:00:17]} e5
{[%clk 01:22:56]} 5. Nf3 {[%clk 01:30:57]} {[%emt 00:00:20]} Bg4 {[%clk
01:23:10]} {[%emt 00:00:15]} 6. Bc4 {[%clk 01:30:53]} {[%emt 00:00:35]} Nd7
{[%clk 01:09:14]} {[%emt 00:14:26]} 7. O-O {[%clk 01:30:39]} {[%emt 00:00:43]}
Ngf6 {[%clk 01:06:36]} {[%emt 00:03:08]} 8. c3 {[%emt 00:00:30]} b5 {[%clk
01:01:16]} {[%emt 00:05:40]} 9. Bxf7+ {[%clk 01:29:36]} {[%emt 00:01:44]} Kxf7
{[%clk 01:00:27]} {[%emt 00:01:18]} 10. Qb3+ {[%emt 00:01:14]} Ke8 {[%clk
00:58:54]} {[%emt 00:01:07]} 11. Nxe5 {[%clk 01:29:59]} {[%emt 00:00:19]} Nxe5
{[%clk 00:57:53]} {[%emt 00:01:31]} 12. dxe5 {[%clk 01:30:19]} {[%emt
00:00:10]} Bc5+ {[%clk 00:58:10]} {[%emt 00:00:13]} 13. Kh1 {[%clk 01:30:22]}
{[%emt 00:00:27]} Qd3 {[%clk 00:58:30]} {[%emt 00:00:10]} 14. Nd2 {[%clk
01:30:32]} {[%emt 00:00:20]} Nxe4 {[%clk 00:56:56]} {[%emt 00:02:04]} 15. Qf7+
{[%clk 01:29:57]} {[%emt 00:01:04]} Kd8 {[%clk 00:57:08]} {[%emt 00:00:18]} 16.
Nxe4 {[%clk 01:22:22]} {[%emt 00:08:05]} Qxe4 {[%clk 00:54:35]} {[%emt
00:03:04]} 17. Qb7 {[%clk 01:20:09]} {[%emt 00:02:43]} h6 {[%clk 00:47:44]}
{[%emt 00:07:20]} 18. Qxa8+ {[%clk 00:40:36]} {[%emt 00:40:03]} Bc8 {[%clk
00:48:09]} {[%emt 00:00:05]} 19. Qb8 {[%clk 00:40:59]} {[%emt 00:00:07]} 1-0

[ePGN "0.1;DGT LiveChess/2.2.3"]

[Event "CAMPEONATO NACIONAL ABSOLUTO DE CHILE 2019"]
[Site "Torre ENTEL, Chile"]
[Date "2019.02.24"]
[Round "6.1"]
[White "Gasic Merino, Franco"]
[Black "Abarca Gonzalez, Nicolas"]
[Result "1-0"]
[TimeControl "90 minutos mas 30 segundos incremento por movida"]
[WhiteFideId "3414370"]
[BlackFideId "3409422"]
[WhiteElo "2189"]
[BlackElo "2418"]

1. d4 {[%clk 01:30:58]} {[%emt 00:00:02]} Nf6 {[%clk 01:29:47]} {[%emt
00:01:14]} 2. g3 {[%clk 01:31:22]} {[%emt 00:00:06]} c5 {[%clk 01:29:14]}
{[%emt 00:01:01]} 3. d5 {[%clk 01:31:49]} {[%emt 00:00:04]} b5 {[%clk
01:29:36]} {[%emt 00:00:08]} 4. f3 {[%clk 01:32:01]} {[%emt 00:00:18]} e6
{[%clk 01:30:03]} {[%emt 00:00:04]} 5. e4 {[%clk 01:32:13]} {[%emt 00:00:17]}
exd5 {[%clk 01:30:32]} {[%emt 00:00:01]} 6. e5 {[%clk 01:32:31]} {[%emt
00:00:13]} Qe7 {[%clk 01:31:01]} 7. Qe2 {[%clk 01:32:49]} {[%emt 00:00:12]} Ng8
{[%clk 01:31:27]} {[%emt 00:00:05]} 8. Nc3 {[%clk 01:33:02]} {[%emt 00:00:17]}
Qe6 {[%clk 01:26:33]} {[%emt 00:05:24]} 9. Bh3 {[%clk 01:28:14]} {[%emt
00:05:18]} Qc6 {[%clk 01:25:46]} {[%emt 00:01:17]} 10. Nxb5 {[%clk 01:28:10]}
{[%emt 00:00:34]} Na6 {[%clk 00:50:14]} {[%emt 00:36:03]} 11. Nd6+ {[%clk
01:22:01]} {[%emt 00:06:39]} Bxd6 {[%clk 00:49:31]} {[%emt 00:01:13]} 12. exd6+
{[%clk 01:22:30]} {[%emt 00:00:01]} Kf8 {[%clk 00:49:56]} {[%emt 00:00:06]} 13.
Bf4 {[%clk 01:22:03]} {[%emt 00:00:57]} d4 {[%clk 00:46:11]} {[%emt 00:04:15]}
14. Bf5 {[%clk 01:12:52]} {[%emt 00:09:40]} Rb8 {[%clk 00:41:59]} {[%emt
00:04:43]} 15. Kf2 {[%clk 01:01:04]} {[%emt 00:12:18]} Nb4 {[%clk 00:35:59]}
{[%emt 00:06:31]} 16. c4 {[%clk 00:51:17]} {[%emt 00:10:16]} dxc3 {[%clk
00:32:17]} {[%emt 00:04:12]} 17. bxc3 {[%clk 00:51:19]} {[%emt 00:00:27]} Nd5
{[%clk 00:32:22]} {[%emt 00:00:25]} 18. Be4 {[%clk 00:50:49]} {[%emt 00:01:00]}
Nxf4 {[%clk 00:32:29]} {[%emt 00:00:23]} 19. Qd2 {[%clk 00:49:20]} {[%emt
00:01:58]} Nd5 {[%clk 00:26:47]} {[%emt 00:06:14]} 20. Bxd5 {[%clk 00:36:17]}
{[%emt 00:13:33]} Qxd6 {[%clk 00:27:10]} {[%emt 00:00:06]} 21. Rd1 {[%clk
00:32:09]} {[%emt 00:04:37]} Ne7 {[%clk 00:22:29]} {[%emt 00:05:11]} 22. Bb3
{[%clk 00:30:23]} {[%emt 00:02:17]} Qxd2+ {[%clk 00:18:54]} {[%emt 00:04:05]}
23. Rxd2 {[%clk 00:30:52]} g6 {[%clk 00:19:21]} {[%emt 00:00:04]} 24. Ne2
{[%clk 00:30:30]} {[%emt 00:00:52]} Kg7 {[%clk 00:19:47]} {[%emt 00:00:04]} 25.
Re1 {[%clk 00:29:41]} {[%emt 00:01:19]} Rd8 {[%clk 00:19:09]} {[%emt 00:01:08]}
26. Nf4 {[%clk 00:29:48]} {[%emt 00:00:23]} Kf8 {[%clk 00:18:53]} {[%emt
00:00:46]} 27. Nd3 {[%clk 00:26:59]} {[%emt 00:03:19]} Rb5 {[%clk 00:11:17]}
{[%emt 00:08:07]} 28. Ne5 {[%clk 00:24:39]} {[%emt 00:02:49]} d5 {[%clk
00:11:32]} {[%emt 00:00:15]} 29. c4 {[%clk 00:24:51]} {[%emt 00:00:18]} Rb6
{[%clk 00:12:01]} {[%emt 00:00:02]} 30. cxd5 {[%clk 00:24:58]} {[%emt
00:00:22]} Rbd6 {[%clk 00:12:25]} {[%emt 00:00:06]} 31. Nd3 {[%clk 00:22:43]}
{[%emt 00:02:45]} Nxd5 {[%clk 00:12:51]} {[%emt 00:00:05]} 32. Nxc5 {[%clk
00:22:58]} {[%emt 00:00:14]} Nb4 {[%clk 00:07:01]} {[%emt 00:06:20]} 33. Rxd6
{[%clk 00:23:13]} {[%emt 00:00:15]} Rxd6 {[%clk 00:07:30]} {[%emt 00:00:01]} 34.
Re2 {[%clk 00:17:34]} {[%emt 00:06:08]} Rc6 {[%clk 00:07:17]} {[%emt 00:00:44]}
35. Ne4 {[%clk 00:15:36]} {[%emt 00:02:28]} Nd3+ {[%clk 00:07:35]} {[%emt
00:00:12]} 36. Ke3 {[%clk 00:15:07]} {[%emt 00:00:58]} Nc1 {[%clk 00:08:02]}
{[%emt 00:00:05]} 37. Bd5 {[%clk 00:14:35]} {[%emt 00:01:01]} Rc7 {[%clk
00:07:20]} {[%emt 00:01:13]} 38. Rd2 {[%clk 00:13:05]} {[%emt 00:01:58]} Ba6
{[%clk 00:07:37]} {[%emt 00:00:14]} 39. g4 {[%clk 00:12:28]} {[%emt 00:01:07]}
h6 {[%clk 00:05:11]} {[%emt 00:02:56]} 40. h4 {[%clk 00:12:46]} {[%emt
00:00:12]} Ke7 {[%clk 00:05:06]} {[%emt 00:00:35]} 41. g5 {[%clk 00:12:45]}
{[%emt 00:00:31]} h5 {[%clk 00:05:35]} 42. Nf6 {[%clk 00:07:55]} {[%emt
00:05:19]} Rc3+ {[%clk 00:04:58]} {[%emt 00:01:07]} 43. Kd4 {[%clk 00:07:15]}
{[%emt 00:01:10]} Rd3+ {[%clk 00:04:30]} {[%emt 00:00:59]} 44. Rxd3 {[%clk
00:07:43]} {[%emt 00:00:02]} Nxd3 {[%clk 00:04:56]} {[%emt 00:00:03]} 45. Be4
{[%clk 00:07:02]} {[%emt 00:01:11]} Nc1 {[%clk 00:04:19]} {[%emt 00:01:08]} 46.
Nd5+ {[%clk 00:06:56]} {[%emt 00:00:36]} Kd6 {[%clk 00:04:22]} {[%emt
00:00:26]} 47. Nc3 {[%clk 00:06:50]} {[%emt 00:00:36]} Bc8 {[%clk 00:04:18]}
{[%emt 00:00:35]} 48. Nb5+ {[%clk 00:05:55]} {[%emt 00:01:25]} Ke7 {[%clk
00:04:47]} {[%emt 00:00:01]} 49. Nxa7 {[%clk 00:06:06]} {[%emt 00:00:19]} Bd7
{[%clk 00:05:17]} 50. Bd5 {[%clk 00:03:35]} {[%emt 00:03:01]} Ne2+ {[%clk
00:04:51]} {[%emt 00:00:56]} 51. Ke5 {[%clk 00:04:01]} {[%emt 00:00:03]} Nc3
{[%clk 00:05:02]} {[%emt 00:00:20]} 52. Bc4 {[%clk 00:04:18]} {[%emt 00:00:13]}
Nd1 {[%clk 00:03:48]} {[%emt 00:01:43]} 53. Bb5 {[%clk 00:03:34]} {[%emt
00:01:15]} Ne3 {[%clk 00:01:45]} {[%emt 00:02:33]} 54. Bxd7 {[%clk 00:02:16]}
{[%emt 00:01:48]} Kxd7 {[%clk 00:02:14]} {[%emt 00:00:01]} 55. Kf6 {[%clk
00:01:57]} {[%emt 00:00:48]} Ke8 {[%clk 00:02:10]} {[%emt 00:00:35]} 56. Nc8
{[%clk 00:01:44]} {[%emt 00:00:43]} Nf5 {[%clk 00:02:03]} {[%emt 00:00:37]} 57.
f4 {[%clk 00:00:43]} {[%emt 00:01:31]} Kd7 {[%clk 00:00:42]} {[%emt 00:01:51]}
58. Kxf7 {[%clk 00:00:41]} {[%emt 00:00:32]} Nxh4 {[%clk 00:01:02]} {[%emt
00:00:09]} 59. Ne7 {[%clk 00:00:58]} {[%emt 00:00:13]} Ng2 {[%clk 00:00:33]}
{[%emt 00:00:59]} 60. Nxg6 {[%clk 00:01:21]} {[%emt 00:00:07]} h4 {[%clk
00:01:03]} 61. Nxh4 {[%emt 00:00:23]} Nxh4 {[%emt 00:00:03]} 62. g6 {[%clk
00:01:06]} {[%emt 00:00:52]} Nf5 {[%clk 00:01:06]} {[%emt 00:00:53]} 63. g7
{[%clk 00:01:00]} {[%emt 00:00:35]} Nh6 {[%clk 00:01:28]} {[%emt 00:00:08]} 64.
Kf8 {[%clk 00:00:44]} {[%emt 00:00:46]} Ke6 {[%clk 00:01:54]} {[%emt 00:00:04]}
65. a4 {[%clk 00:00:46]} {[%emt 00:00:28]} Kf5 {[%clk 00:01:59]} {[%emt
00:00:25]} 66. a5 {[%clk 00:00:47]} {[%emt 00:00:29]} Kxf4 {[%clk 00:02:25]}
{[%emt 00:00:04]} 67. a6 {[%clk 00:01:03]} {[%emt 00:00:13]} 1-0

[Event "CAMPEONATO NACIONAL ABSOLUTO DE CHILE 2019"]
[Site "Torre ENTEL, Chile"]
[Date "2019.02.24"]
[Round "6.2"]
[White "Lopez Silva, Hugo"]
[Black "Cuevas Araya, Walter"]
[Result "1-0"]
[TimeControl "90 minutos mas 30 segundos incremento por movida"]
[BlackTitle "FM"]
[WhiteFideId "3403874"]
[BlackFideId "3405028"]
[WhiteElo "2413"]
[BlackElo "2187"]

1. e4 {[%emt 00:44:42]} c5 {[%clk 01:28:05]} {[%emt 00:02:39]} 2. Nf3 {[%clk
01:30:52]} {[%emt 00:00:08]} Nc6 {[%clk 01:28:34]} {[%emt 00:00:02]} 3. d4
{[%clk 01:30:44]} {[%emt 00:00:37]} cxd4 {[%clk 01:29:02]} {[%emt 00:00:03]} 4.
Nxd4 {[%clk 01:31:09]} {[%emt 00:00:05]} g6 {[%clk 01:29:25]} {[%emt 00:00:07]}
5. c4 {[%clk 01:31:07]} {[%emt 00:00:32]} Bg7 {[%clk 01:29:39]} {[%emt
00:00:16]} 6. Be3 {[%clk 01:31:34]} {[%emt 00:00:02]} Nf6 {[%clk 01:29:32]}
{[%emt 00:00:38]} 7. Nc3 {[%clk 01:32:00]} {[%emt 00:00:03]} Ng4 {[%clk
01:29:38]} {[%emt 00:00:24]} 8. Qxg4 {[%clk 01:32:23]} {[%emt 00:00:06]} Nxd4
{[%clk 01:30:00]} {[%emt 00:00:09]} 9. Qd1 {[%clk 01:32:51]} {[%emt 00:00:01]}
Ne6 {[%clk 01:30:21]} {[%emt 00:00:10]} 10. Rc1 {[%clk 01:33:18]} {[%emt
00:00:02]} Qa5 {[%clk 01:30:39]} {[%emt 00:00:13]} 11. Qd2 {[%clk 01:31:06]}
{[%emt 00:02:41]} b6 {[%clk 01:30:26]} {[%emt 00:00:44]} 12. Bd3 {[%clk
01:29:33]} {[%emt 00:02:03]} Bb7 {[%clk 01:29:02]} {[%emt 00:01:53]} 13. O-O
{[%clk 01:27:48]} {[%emt 00:02:16]} g5 {[%clk 01:28:29]} {[%emt 00:01:03]} 14.
a3 {[%clk 01:26:48]} {[%emt 00:01:31]} h5 {[%clk 01:27:54]} {[%emt 00:01:05]}
15. Rfe1 {[%clk 01:04:42]} {[%emt 00:22:35]} h4 {[%clk 01:25:33]} {[%emt
00:02:51]} 16. h3 {[%clk 01:02:35]} {[%emt 00:02:37]} Qe5 {[%clk 01:07:36]}
{[%emt 00:18:27]} 17. b4 {[%clk 01:00:55]} {[%emt 00:02:09]} Rg8 {[%clk
01:02:31]} {[%emt 00:05:36]} 18. Nd5 {[%clk 00:52:44]} {[%emt 00:08:42]} Bh8
{[%clk 01:01:57]} {[%emt 00:01:05]} 19. Be2 {[%clk 00:40:49]} {[%emt 00:12:24]}
Rc8 {[%clk 00:35:13]} {[%emt 00:27:14]} 20. Bg4 {[%clk 00:32:33]} {[%emt
00:08:45]} d6 {[%clk 00:28:06]} {[%emt 00:07:37]} 21. a4 {[%clk 00:19:17]}
{[%emt 00:13:46]} Bc6 {[%clk 00:27:51]} {[%emt 00:00:45]} 22. a5 {[%clk
00:17:58]} {[%emt 00:01:49]} bxa5 {[%clk 00:26:47]} {[%emt 00:01:34]} 23. b5
{[%clk 00:18:27]} Bd7 {[%clk 00:26:00]} {[%emt 00:01:17]} 24. Qxa5 {[%clk
00:10:28]} {[%emt 00:08:29]} Nc5 {[%clk 00:23:52]} {[%emt 00:02:38]} 25. Qxa7
{[%clk 00:06:53]} {[%emt 00:04:05]} Bxg4 {[%clk 00:23:52]} {[%emt 00:00:29]} 26.
hxg4 {[%clk 00:06:50]} {[%emt 00:00:33]} Kf8 {[%clk 00:17:55]} {[%emt
00:06:27]} 27. b6 {[%clk 00:06:28]} {[%emt 00:00:52]} Kg7 {[%clk 00:16:32]}
{[%emt 00:01:53]} 28. Nxe7 {[%clk 00:02:25]} {[%emt 00:04:33]} Ra8 {[%clk
00:16:43]} {[%emt 00:00:19]} 29. Qc7 {[%clk 00:02:34]} {[%emt 00:00:21]} Ne6
{[%clk 00:15:07]} {[%emt 00:02:06]} 30. Qxd6 {[%clk 00:02:40]} {[%emt
00:00:24]} Qxd6 {[%clk 00:15:05]} {[%emt 00:00:32]} 31. Nf5+ {[%clk 00:03:03]}
{[%emt 00:00:06]} Kg6 {[%clk 00:15:32]} {[%emt 00:00:03]} 32. Nxd6 {[%clk
00:03:28]} {[%emt 00:00:05]} Be5 {[%clk 00:15:51]} {[%emt 00:00:12]} 33. Nf5
{[%clk 00:03:49]} {[%emt 00:00:09]} Kf6 {[%clk 00:15:18]} {[%emt 00:01:03]} 34.
c5 {[%clk 00:03:50]} {[%emt 00:00:29]} Ra4 {[%clk 00:14:21]} {[%emt 00:01:27]}
35. c6 {[%clk 00:04:06]} {[%emt 00:00:14]} Rb4 {[%clk 00:14:39]} {[%emt
00:00:12]} 36. c7 {[%clk 00:02:59]} {[%emt 00:01:37]} Rc8 {[%clk 00:14:32]}
{[%emt 00:00:37]} 37. Rb1 {[%clk 00:02:47]} {[%emt 00:00:41]} 1-0

[Event "CAMPEONATO NACIONAL ABSOLUTO DE CHILE 2019"]
[Site "Torre ENTEL, Chile"]
[Date "2019.02.24"]
[Round "6.3"]
[White "Salinas Herrera, Pablo"]
[Black "Aguirre Contreras, Cristian"]
[Result "1-0"]
[TimeControl "90 minutos mas 30 segundos incremento por movida"]
[WhiteTitle "IM"]
[BlackTitle "FM"]
[WhiteFideId "3407128"]
[BlackFideId "3412776"]
[WhiteElo "2477"]
[BlackElo "2252"]

1. Nf3 {[%clk 01:16:49]} {[%emt 00:14:09]} Nf6 {[%clk 01:30:46]} {[%emt
00:00:15]} 2. c4 {[%clk 01:16:25]} {[%emt 00:00:55]} e6 {[%clk 01:29:57]}
{[%emt 00:01:19]} 3. b3 {[%clk 01:16:22]} {[%emt 00:00:32]} d5 {[%clk
01:30:19]} {[%emt 00:00:08]} 4. Bb2 {[%clk 01:16:48]} {[%emt 00:00:04]} Be7
{[%clk 01:30:43]} {[%emt 00:00:06]} 5. e3 {[%clk 01:16:56]} {[%emt 00:00:22]}
O-O {[%clk 01:30:22]} {[%emt 00:00:50]} 6. Nc3 {[%clk 01:17:14]} {[%emt
00:00:12]} b6 {[%clk 01:24:38]} {[%emt 00:06:15]} 7. cxd5 {[%clk 01:14:00]}
{[%emt 00:03:43]} Nxd5 {[%clk 01:21:42]} {[%emt 00:03:26]} 8. Nxd5 {[%clk
01:14:12]} {[%emt 00:00:19]} Qxd5 {[%clk 01:20:17]} {[%emt 00:01:55]} 9. Qc2
{[%clk 01:14:11]} {[%emt 00:00:30]} Ba6 {[%clk 01:11:00]} {[%emt 00:09:47]} 10.
Qxc7 {[%clk 01:04:46]} {[%emt 00:09:56]} Bxf1 {[%clk 01:10:02]} {[%emt
00:01:27]} 11. Qxe7 {[%clk 00:43:34]} {[%emt 00:21:42]} Bxg2 {[%clk 00:57:34]}
{[%emt 00:12:58]} 12. Rg1 {[%clk 00:43:50]} {[%emt 00:00:14]} Qxf3 {[%clk
00:57:53]} {[%emt 00:00:11]} 13. Bxg7 {[%clk 00:43:54]} {[%emt 00:00:26]} Nc6
{[%clk 00:25:33]} {[%emt 00:32:50]} 14. Qg5 {[%clk 00:44:19]} {[%emt 00:00:05]}
f6 {[%clk 00:25:42]} {[%emt 00:00:22]} 15. Qxg2 {[%clk 00:44:41]} {[%emt
00:00:06]} Qxg2 {[%clk 00:22:43]} {[%emt 00:03:29]} 16. Rxg2 {[%clk 00:45:07]}
{[%emt 00:00:04]} Rfc8 {[%clk 00:22:47]} {[%emt 00:00:26]} 17. Bxf6+ {[%clk
00:45:32]} {[%emt 00:00:06]} Kf7 {[%clk 00:23:13]} {[%emt 00:00:05]} 18. Bc3
{[%clk 00:45:57]} {[%emt 00:00:04]} Rg8 {[%clk 00:23:39]} {[%emt 00:00:04]} 19.
Rg3 {[%clk 00:46:19]} {[%emt 00:00:07]} b5 {[%clk 00:23:54]} {[%emt 00:00:15]}
20. Ke2 {[%clk 00:45:48]} {[%emt 00:01:00]} b4 {[%clk 00:22:47]} {[%emt
00:01:38]} 21. Bb2 {[%clk 00:46:13]} {[%emt 00:00:05]} Ne7 {[%clk 00:23:11]}
{[%emt 00:00:06]} 22. Rh3 {[%clk 00:46:15]} {[%emt 00:00:29]} 1-0

[Event "CAMPEONATO NACIONAL ABSOLUTO DE CHILE 2019"]
[Site "Torre ENTEL, Chile"]
[Date "2019.02.24"]
[Round "6.4"]
[White "Henriquez Villagra, Cristobal"]
[Black "Tapia Fuentes, Jaime"]
[Result "1-0"]
[TimeControl "90 minutos mas 30 segundos incremento por movida"]
[WhiteTitle "GM"]
[BlackTitle "FM"]
[WhiteFideId "3409350"]
[BlackFideId "3403025"]
[WhiteElo "2508"]
[BlackElo "2259"]

1. e4 {[%clk 01:30:46]} {[%emt 00:00:13]} c5 {[%clk 01:20:11]} {[%emt
00:10:49]} 2. Nc3 {[%clk 01:31:07]} {[%emt 00:00:09]} g6 {[%clk 01:18:31]}
{[%emt 00:02:10]} 3. d4 {[%clk 01:29:58]} {[%emt 00:01:39]} Bg7 {[%clk
01:18:42]} {[%emt 00:00:18]} 4. d5 {[%clk 01:29:50]} {[%emt 00:00:39]} d6
{[%clk 01:19:00]} {[%emt 00:00:11]} 5. Be2 {[%clk 01:27:30]} {[%emt 00:02:50]}
Nf6 {[%clk 01:16:13]} {[%emt 00:03:17]} 6. Be3 {[%clk 01:20:59]} {[%emt
00:07:02]} a6 {[%clk 01:06:52]} {[%emt 00:09:51]} 7. a4 {[%clk 01:20:44]}
{[%emt 00:00:45]} O-O {[%clk 01:02:43]} {[%emt 00:04:39]} 8. Nf3 {[%clk
01:06:09]} {[%emt 00:15:05]} b6 {[%clk 00:49:56]} {[%emt 00:13:17]} 9. Nd2
{[%clk 01:04:34]} {[%emt 00:02:05]} Nbd7 {[%clk 00:49:51]} {[%emt 00:00:35]} 10.
O-O {[%clk 01:04:01]} {[%emt 00:01:03]} Ne8 {[%clk 00:47:13]} {[%emt 00:03:07]}
11. Nc4 {[%clk 01:03:56]} {[%emt 00:00:35]} Rb8 {[%clk 00:46:59]} {[%emt
00:00:43]} 12. Qd2 {[%clk 01:03:23]} {[%emt 00:01:04]} Ne5 {[%clk 00:44:08]}
{[%emt 00:03:21]} 13. Na3 {[%clk 00:57:01]} {[%emt 00:06:53]} f5 {[%clk
00:42:19]} {[%emt 00:02:18]} 14. h3 {[%clk 00:52:28]} {[%emt 00:05:04]} Nc7
{[%clk 00:42:19]} {[%emt 00:00:30]} 15. f4 {[%clk 00:51:55]} {[%emt 00:01:03]}
Nf7 {[%clk 00:42:19]} {[%emt 00:00:30]} 16. exf5 {[%clk 00:50:51]} {[%emt
00:01:35]} gxf5 {[%clk 00:40:26]} {[%emt 00:02:23]} 17. Bf2 {[%clk 00:44:27]}
{[%emt 00:06:53]} Bf6 {[%clk 00:38:07]} {[%emt 00:02:48]} 18. Rfe1 {[%clk
00:42:53]} {[%emt 00:02:05]} Kh8 {[%clk 00:35:18]} {[%emt 00:03:18]} 19. Rab1
{[%clk 00:40:29]} {[%emt 00:02:54]} e6 {[%clk 00:24:53]} {[%emt 00:10:55]} 20.
dxe6 {[%clk 00:40:22]} {[%emt 00:00:37]} Nxe6 {[%clk 00:24:05]} {[%emt
00:01:18]} 21. Nd5 {[%clk 00:39:37]} {[%emt 00:01:15]} Nd4 {[%clk 00:23:38]}
{[%emt 00:00:57]} 22. Nxf6 {[%clk 00:39:35]} {[%emt 00:00:32]} Nxe2+ {[%clk
00:22:32]} {[%emt 00:01:36]} 23. Qxe2 {[%clk 00:40:00]} {[%emt 00:00:05]} Qxf6
{[%clk 00:22:57]} {[%emt 00:00:05]} 24. Qe7 {[%clk 00:40:27]} {[%emt 00:00:02]}
Qxe7 {[%clk 00:22:46]} {[%emt 00:00:41]} 25. Rxe7 {[%clk 00:40:55]} {[%emt
00:00:02]} b5 {[%clk 00:17:19]} {[%emt 00:05:57]} 26. axb5 {[%clk 00:41:05]}
{[%emt 00:00:20]} axb5 {[%clk 00:16:32]} {[%emt 00:01:17]} 27. b4 {[%clk
00:41:32]} {[%emt 00:00:03]} c4 {[%clk 00:13:03]} {[%emt 00:03:59]} 28. Bd4+
{[%clk 00:41:13]} {[%emt 00:00:49]} Kg8 {[%clk 00:13:28]} {[%emt 00:00:06]} 29.
Rbe1 {[%clk 00:41:40]} {[%emt 00:00:03]} Bb7 {[%clk 00:13:15]} {[%emt
00:00:43]} 30. R1e3 {[%clk 00:42:05]} {[%emt 00:00:05]} Rfc8 {[%clk 00:11:58]}
{[%emt 00:01:47]} 31. Bf6 {[%clk 00:40:08]} {[%emt 00:02:27]} Bd5 {[%clk
00:10:58]} {[%emt 00:01:30]} 32. Nxb5 {[%clk 00:39:56]} {[%emt 00:00:42]} Kf8
{[%clk 00:10:38]} {[%emt 00:00:49]} 33. Nc7 {[%clk 00:40:15]} {[%emt 00:00:11]}
1-0